fUSD/lending_fUSD_20260115
["ID","MTS","AMOUNT","RATE_DAILY","PERIOD"]
[401982920,1768435844870,-834.0,0.00041626,11]
[401982922,1768435844880,-834.0,0.00041626,11]
[401982924,1768435844889,-5354.24443387,0.00041671,30]
[401982926,1768435844899,-500.0,0.0004168,120]
[401982928,1768435844908,-300.0,0.000417,30]
[401982929,1768435844917,-554.0,0.000417,30]
[401982932,1768435844931,-836.1593839,0.00041837,2]
[401982933,1768435844940,-5325.0,0.00041842,30]
[401982935,1768435844951,-1294.70404672,0.000419,120]
[401982938,1768435844961,-1294.70404657,0.000419,120]
[401982940,1768435844971,-1294.70404657,0.000419,120]
[401982942,1768435844980,-1294.70404657,0.000419,120]
[401982944,1768435844989,-1294.70404657,0.000419,120]
[401982945,1768435844998,-1294.70404657,0.000419,120]
[401982948,1768435845008,-1294.70404657,0.000419,120]
[401982950,1768435845018,-1294.70404657,0.000419,120]
[401982952,1768435845027,-1294.70404657,0.000419,120]
[401982954,1768435845037,-1294.70404657,0.000419,120]
[401982955,1768435845046,-1294.70404657,0.000419,120]
[401982956,1768435845055,-1294.70404657,0.000419,120]
[401982957,1768435845064,-1294.70404657,0.000419,120]
[401982958,1768435845073,-1294.70404657,0.000419,120]
[401982959,1768435845082,-1294.70404657,0.000419,120]
[401982960,1768435845091,-1294.70404657,0.000419,120]
[401982961,1768435845100,-1294.70404657,0.000419,120]
[401982962,1768435845109,-1294.70404657,0.000419,120]
[401982963,1768435845118,-1294.70404657,0.000419,120]
[401982964,1768435845127,-900.0,0.000419,15]
[401982965,1768435845136,-3572.736139,0.00041901,2]
[401982966,1768435845145,-500.0,0.00041906,7]
[401982967,1768435845154,-500.0,0.00041906,7]
[401982969,1768435845163,-500.0,0.00041906,7]
[401982970,1768435845171,-510.15,0.00041906,7]
[401982971,1768435845181,-162.0,0.00041934,16]
[401982973,1768435845190,-834.0,0.0004194,16]
[401982975,1768435845199,-162.0,0.00041942,16]
[401982977,1768435845209,-162.0,0.00041945,16]
[401982979,1768435845218,-678.65,0.00041945,30]
[401982981,1768435845228,-662.22,0.00041945,30]
[401982983,1768435845237,-662.22,0.00041945,30]
[401982985,1768435845246,-662.22,0.00041945,30]
[401982987,1768435845255,-662.22,0.00041945,30]
[401982989,1768435845265,-834.0,0.00041946,16]
[401982991,1768435845274,-162.0,0.00041947,16]
[401982993,1768435845288,-834.0,0.00041947,16]
[401982995,1768435845297,-501.95208952,0.00042,120]
[401982997,1768435845306,-150.0,0.00042,120]
[401982999,1768435845315,-150.0,0.00042,120]
[401983001,1768435845325,-150.0,0.00042,120]
[401983003,1768435845334,-150.0,0.00042,120]
[401983005,1768435845343,-150.0,0.00042,120]
[401983007,1768435845357,-150.0,0.00042,120]
[401983009,1768435845366,-150.0,0.00042,120]
[401983011,1768435845376,-150.0,0.00042,120]
[401983013,1768435845385,-150.0,0.00042,120]
[401983015,1768435845398,-150.0,0.00042,120]
[401983017,1768435845408,-1751.0,0.00042,30]
[401983019,1768435845418,-150.0,0.00042,120]
[401983022,1768435845433,-164.0,0.00042,120]
[401983024,1768435845442,-1493.32,0.00042,120]
[401983026,1768435845451,-4986.96849561,0.00042,120]
[401983028,1768435845461,-1000.0,0.00042,70]
[401983029,1768435845470,-5000.0,0.00042,120]
[401983032,1768435845480,-648.16,0.00042,120]
[401983033,1768435845490,-500.0,0.00042,120]
[401983035,1768435845499,-240.11387109,0.00042,120]
[401983037,1768435845509,-7368.98441086,0.00042039,28]
[401983040,1768435845521,-11023.55996864,0.00042039,28]
[401983042,1768435845531,-14915.2608,0.00042039,28]
[401983044,1768435845540,-198.5,0.00042055,14]
[401983068,1768435845754,-179.36,0.00042082,30]
[401983070,1768435845763,-467.34,0.00042082,30]
[401983072,1768435845773,-179.36,0.00042082,30]
[401983073,1768435845782,-467.34,0.00042082,30]
[401983076,1768435845791,-178.96,0.00042082,30]
[401983078,1768435845801,-467.34,0.00042082,30]
[401983079,1768435845811,-467.34,0.00042082,30]
[401983081,1768435845821,-467.34,0.00042082,30]
[401983083,1768435845830,-757.53,0.00042082,30]
[401983086,1768435845840,-1113.62,0.00042082,30]
[401983087,1768435845850,-171.62,0.00042082,30]
[401983090,1768435845860,-171.62,0.00042082,30]
[401983092,1768435845870,-179.36,0.00042082,30]
[401983093,1768435845880,-171.62,0.00042082,30]
[401983095,1768435845890,-467.34,0.00042082,30]
[401983097,1768435845900,-179.36,0.00042082,30]
[401983099,1768435845910,-467.34,0.00042082,30]
[401983101,1768435845919,-171.62,0.00042082,30]
[401983104,1768435845931,-179.36,0.00042082,30]
[401983106,1768435845941,-171.62,0.00042082,30]
[401983108,1768435845950,-467.34,0.00042082,30]
[401983110,1768435845959,-150.0,0.00042119,14]
[401983112,1768435845969,-500.0,0.0004216,120]
[401983114,1768435845978,-198.49,0.00042176,14]
[401983115,1768435845987,-6000.0,0.000422,15]
[401983117,1768435845998,-1300.0,0.000422,15]
[401983119,1768435846008,-151.0,0.000422,120]
[401983121,1768435846019,-1356.9,0.00042217,120]
[401983124,1768435846028,-504.0,0.00042241,18]
[401983126,1768435846038,-162.0,0.00042257,16]
[401983128,1768435846048,-162.0,0.00042257,16]
[401983130,1768435846057,-162.0,0.00042265,16]
[401983132,1768435846067,-162.0,0.00042266,16]
[401983134,1768435846076,-162.0,0.00042266,16]
[401983136,1768435846085,-834.0,0.00042266,16]
[401983138,1768435846095,-162.0,0.00042267,16]
[401983140,1768435846104,-5325.0,0.00042274,30]
[401983142,1768435846113,-2563.74337966,0.0004228,2]
[401983144,1768435846122,-1086.546,0.00042297,2]
[401983146,1768435846131,-614.0,0.00042297,2]
[401983147,1768435846140,-7600.0,0.000423,15]
[401983149,1768435846151,-1600.0,0.000423,15]
[401983151,1768435846161,-758.84,0.000423,14]
[401983153,1768435846170,-151.0,0.000424,120]
[401983156,1768435846180,-1500.0,0.000424,15]
[401983157,1768435846190,-150.0,0.00042428,14]
[401983160,1768435846199,-1000.0,0.0004244,14]
[401983161,1768435846209,-150.0,0.00042445,14]
[401983164,1768435846218,-200.0,0.00042466,90]
[401983166,1768435846228,-1500.0,0.000425,15]
[401983168,1768435846238,-1000.0,0.00042544,14]
[401983170,1768435846247,-1294.70404657,0.0004258,120]
[401983172,1768435846257,-2206.35011691,0.0004258,2]
[401983174,1768435846266,-834.0,0.00042582,16]
[401983176,1768435846276,-834.0,0.00042584,16]
[401983178,1768435846286,-3521.18118084,0.00042585,16]
[401983179,1768435846296,-162.0,0.00042586,16]
[401983182,1768435846305,-834.0,0.00042586,16]
[401983183,1768435846315,-162.0,0.00042586,16]
[401983186,1768435846324,-822.0,0.00042586,16]
[401983187,1768435846334,-834.0,0.00042587,16]
[401983190,1768435846344,-150.0,0.00042598,120]
[401983192,1768435846358,-5000.0,0.00042599,15]
[401983194,1768435846368,-1500.0,0.000426,15]
[401983196,1768435846377,-3216.3228,0.00042601,2]
[401983198,1768435846387,-10000.0,0.00042601,2]
[401983200,1768435846398,-150.0,0.00042603,14]
[401983202,1768435846407,-2206.35011691,0.0004262,2]
[401983204,1768435846417,-5000.0,0.00042629,30]
[401983206,1768435846427,-300.0,0.0004263,90]
[401983208,1768435846443,-300.0,0.0004263,90]
[401983211,1768435846456,-300.0,0.0004263,90]
[401983213,1768435846466,-500.0,0.0004263,90]
[401983215,1768435846477,-500.0,0.0004263,90]
[401983217,1768435846486,-1000.0,0.00042631,14]
[401983219,1768435846496,-150.0,0.00042639,120]
[401983221,1768435846506,-150.0,0.00042639,120]
[401983223,1768435846517,-150.0,0.00042654,14]
[401983225,1768435846527,-2206.35011691,0.00042661,2]
[401983227,1768435846537,-151.0,0.00042669,120]
[401983230,1768435846547,-507980.13739771,0.00042672,30]
[401983238,1768435846613,-38241.68388638,0.00042672,30]
[401983382,1768435847999,-179.36,0.00042082,30]
[401983384,1768435848010,-467.34,0.00042082,30]
[401983386,1768435848019,-300.0,0.000424,15]
[401983388,1768435848028,-300.0,0.000425,15]
[401983390,1768435848038,-1572.61848434,0.00042672,30]
[401983410,1768435848214,-14754.34948906,0.00042672,30]
[401983437,1768435848469,-547.19260225,0.00026876,2]
[401983439,1768435848478,-6557.0,0.00034333,2]
[401983441,1768435848487,-917.8074035,0.00037333,2]
[401983443,1768435848498,-2387.85001,0.00037333,2]
[401983450,1768435848551,-1237.62000005,0.00037333,2]
[401983453,1768435848562,-1719.32187437,0.00037333,2]
[401984304,1768435867461,344.98670239,0.0001988,120]
[401984305,1768435869304,195.0,0.0001988,120]
[401984306,1768435869403,195.0,0.00024065,120]
[401984307,1768435869511,195.0,0.00029683,120]
[401984310,1768436075075,164.0,0.000301,120]
[401984314,1768436439669,335.09469148,0.000155,2]
[401984315,1768436474225,2500.0,0.00030137,120]
[401984317,1768436723105,25500.81545651,0.000201,30]
[401984319,1768436852156,648.16,0.0003013,120]
[401984320,1768436904220,229.29,0.00025429,120]
[401984322,1768436938475,2203.16,0.0003013,120]
[401984323,1768436974174,-9432.60016094,0.00016,2]
[401984324,1768436974197,-300.0,0.00016199,2]
[401984325,1768436974217,-5867.46565062,0.00016199,2]
[401984326,1768436974236,-11302.29241384,0.000162,5]
[401984329,1768437031469,-1200.0,0.00016199,2]
[401984330,1768437031480,-5334.73042093,0.000162,5]
[401984337,1768437031574,-4057.68000001,0.000162,5]
[401984338,1768437031585,-5233.69434724,0.000162,5]
[401984339,1768437031594,-151.0,0.00016323,2]
[401984340,1768437031604,-151.0,0.00016331,2]
[401984341,1768437031613,-1000.0,0.00016444,2]
[401984342,1768437031622,-1800.0,0.000168,6]
[401984343,1768437031631,-2622.30419342,0.000169,6]
[401984344,1768437031777,-977.69580658,0.000169,6]
[401984346,1768437031787,-296.44,0.00016915,2]
[401984348,1768437031796,-229.29,0.00016953,2]
[401984350,1768437031806,-623.95406849,0.00017,2]
[401984352,1768437031817,-879.45743612,0.00017,2]
[401984355,1768437031827,-2054.57894817,0.00017,2]
[401984357,1768437031836,-160.0,0.00017,2]
[401984359,1768437031847,-72.32441234,0.00017129,2]
[401984414,1768437037807,-1935.74458766,0.00017129,2]
[401984415,1768437037816,-170.039,0.00017129,2]
[401984416,1768437037826,-166.66,0.00017179,2]
[401984417,1768437037835,-151.0,0.00017287,2]
[401984418,1768437037844,-550.0,0.00017289,2]
[401984419,1768437037853,-1000.0,0.00017289,2]
[401984420,1768437037862,-500.0,0.00017289,2]
[401984421,1768437037871,-587.5412259,0.00017289,2]
[401984422,1768437037881,-196.00514886,0.0001729,2]
[401984423,1768437037890,-818.95113927,0.0001729,2]
[401984461,1768437038337,-641.50974035,0.0001729,2]
[401984463,1768437038348,-3850.78775845,0.0001729,2]
[401984466,1768437038367,-3379.8,0.0001729,2]
[401984468,1768437038378,-140408.45886317,0.0001729,2]
[401984613,1768437039778,-365.96399977,0.0001729,2]
[401984648,1768437040113,-850534.52849899,0.0001729,2]
[401984650,1768437040124,-9958.71416101,0.0001739,2]
[401984652,1768437040134,-15521.48647575,0.0001739,2]
[401984654,1768437040143,-79082.81422119,0.00017469,2]
[401984656,1768437040153,-500.0,0.00017478,2]
[401984658,1768437040162,-500.0,0.00017478,2]
[401984660,1768437040171,-318.7628397,0.00017478,2]
[401984662,1768437040180,-500.0,0.00017478,2]
[401984664,1768437040190,-474.43522182,0.00017478,2]
[401984666,1768437040199,-500.0,0.00017478,2]
[401984668,1768437040209,-500.0,0.00017478,2]
[401984670,1768437040218,-500.0,0.00017478,2]
[401984672,1768437040228,-500.0,0.00017478,2]
[401984674,1768437040238,-577.6208976,0.00017478,2]
[401984676,1768437040247,-4517.32,0.00017478,2]
[401984678,1768437040256,-150.0,0.00017478,2]
[401984680,1768437040266,-2612.41,0.0001749,2]
[401984682,1768437040276,-150.99,0.0001749,2]
[401984684,1768437040285,-1602.28563025,0.000175,2]
[401984686,1768437040295,-5867.46565062,0.0001752,2]
[401984688,1768437040303,-752.11163925,0.0001759,2]
[401984690,1768437040312,-780.49784953,0.000177,2]
[401984692,1768437040322,-166.66,0.00017746,2]
[401984694,1768437040332,-1816.2,0.00017748,2]
[401984696,1768437040341,-1680.0,0.00017796,2]
[401984698,1768437040350,-195.0,0.00017819,2]
[401984700,1768437040359,-300.0,0.00017819,2]
[401984702,1768437040367,-19193.74338386,0.000179,2]
[401984704,1768437040377,-165.96923539,0.0001799,2]
[401984706,1768437040387,-151.0,0.00017997,2]
[401984707,1768437040398,-151.0,0.00017997,2]
[401984710,1768437040409,-376305.01338992,0.00018,2]
[401984712,1768437040421,-11552.29582135,0.00018,2]
[401984714,1768437040430,-675870.16587576,0.00018,2]
[401984716,1768437040439,-166.66,0.00018313,2]
[401984718,1768437040448,-935.0,0.00018396,2]
[401984720,1768437040458,-2483.46,0.00018503,2]
[401984722,1768437040467,-151.25,0.000188,2]
[401984723,1768437040476,-166.66,0.0001888,2]
[401984726,1768437040488,-229.29,0.00019072,2]
[401984727,1768437040499,-200.0,0.00019082,2]
[401984730,1768437040508,-168.0,0.00019181,2]
[401984732,1768437040517,-2351.0,0.00019551,2]
[401984734,1768437040526,-482.0,0.00019571,2]
[401984736,1768437040535,-166.66,0.00019633,2]
[401984738,1768437040545,-1816.2,0.00020035,2]
[401984740,1768437040554,-166.66,0.00020046,2]
[401984742,1768437040563,-9958.714161,0.00020212,2]
[401984744,1768437040572,-15521.48647568,0.00020212,2]
[401984746,1768437040582,-166.66,0.0002046,2]
[401984747,1768437040591,-1852.42,0.00020501,2]
[401984749,1768437040600,-166.66,0.00020873,2]
[401984752,1768437040610,-229.29,0.00021191,2]
[401984754,1768437040619,-166.66,0.00021286,2]
[401984756,1768437040629,-250.0,0.00021387,2]
[401984757,1768437040639,-892.0,0.00021478,2]
[401984760,1768437040649,-5867.46565062,0.00021485,14]
[401984762,1768437040659,-166.66,0.000217,2]
[401984764,1768437040669,-752.1116392,0.00021789,2]
[401984766,1768437040679,-5000.0,0.00021918,2]
[401984768,1768437040692,-1816.2,0.00022322,2]
[401984770,1768437040704,-500.0,0.00022923,2]
[401984772,1768437040714,-250.37,0.0002293,2]
[401984774,1768437040723,-9958.714161,0.00023034,2]
[401984776,1768437040734,-15521.48647568,0.00023034,2]
[401984778,1768437040743,-2206.35011691,0.0002321,2]
[401984780,1768437040752,-229.29,0.0002331,2]
[401984782,1768437040764,-494.33,0.00023743,30]
[401984784,1768437040773,-902.5824,0.00023764,2]
[401984786,1768437040782,-500.0,0.00023819,2]
[401984788,1768437040792,-150.0,0.00023875,2]
[401984790,1768437040801,-5867.46565062,0.00024128,24]
[401984792,1768437040810,-469.93721358,0.00024397,2]
[401984794,1768437040819,-1816.2,0.00024609,2]
[401984796,1768437040828,-1000.0,0.00024658,2]
[401984798,1768437040837,-291.19292406,0.0002479,2]
[401984800,1768437040846,-500.0,0.00024799,2]
[401984802,1768437040854,-500.0,0.00024799,2]
[401984804,1768437040863,-5400.0,0.000248,9]
[401984806,1768437040872,-150.0,0.00024863,2]
[401984808,1768437040881,-596.64,0.00024899,2]
[401984810,1768437040890,-467.55781185,0.00024899,2]
[401984812,1768437040899,-493.82,0.000249,2]
[401984814,1768437040908,-7200.0,0.000249,9]
[401984816,1768437040918,-5885.35577379,0.000249,3]
[401985024,1768437042996,-151.0,0.00016392,2]
[401985027,1768437043005,-850.9863755,0.000249,3]
[401985038,1768437043101,-386.7578767,0.000249,3]
[401985040,1768437043114,-362.306,0.000249,3]
[401985076,1768437043441,-364.47543328,0.000249,3]
[401985302,1768437045563,-7983.99999241,0.000249,3]
[401985304,1768437045576,-2608.63388952,0.000249,3]
[401985620,1768437389989,386.0,0.00030137,120]
[401985624,1768438048927,765.63,8.51e-05,2]
[401985625,1768438049138,765.63,8.958e-05,2]
[401985626,1768438049369,765.63,9.406e-05,2]
[401985627,1768438049780,765.63,9.854e-05,2]
[401985628,1768438049982,765.63,0.00010302,2]
[401985629,1768438050233,765.63,0.00010749,2]
[401985630,1768438050449,765.63,0.00011197,2]
[401985631,1768438050652,765.63,0.00011645,2]
[401985632,1768438051635,765.63,0.00012093,2]
[401985633,1768438051727,765.63,0.00012541,2]
[401985634,1768438051878,765.63,0.00012989,2]
[401985635,1768438051951,765.63,0.00013437,2]
[401985636,1768438052025,765.63,0.00013885,2]
[401985637,1768438052092,765.63,0.00014333,2]
[401985638,1768438052223,765.63,0.0001478,2]
[401985639,1768438052371,765.63,0.00015228,2]
[401985640,1768438166090,-765.63,0.00015676,2]
[401985641,1768438166110,-765.63,0.00016124,2]
[401985642,1768438166133,-151.0,0.00016357,2]
[401985643,1768438166154,-500.0,0.0001636,2]
[401985644,1768438166174,-150.0,0.00016572,2]
[401985645,1768438166197,-765.63,0.00016572,2]
[401985646,1768438166223,-1522.55322598,0.0001659,2]
[401985649,1768438231514,-151.0,0.00016389,2]
[401985650,1768438231524,-151.0,0.00016395,2]
[401985651,1768438231535,-151.0,0.00016587,2]
[401985652,1768438231544,-151.0,0.00016587,2]
[401985654,1768438231554,-1082.79317976,0.00016589,2]
[401985656,1768438231567,-117.20682024,0.00016589,2]
[401985657,1768438231577,-5365.88223694,0.0001659,2]
[401985658,1768438231589,-344714.67759723,0.0001659,2]
[401985659,1768438231603,-37072.50831658,0.0001659,2]
[401985660,1768438231615,-108588.59997659,0.0001659,2]
[401985661,1768438231752,-31889.09835446,0.0001659,2]
[401985662,1768438231767,-8188.94331907,0.0001659,2]
[401985663,1768438231780,-2929.71303019,0.0001659,2]
[401985665,1768438231793,-1247.39962148,0.0001659,2]
[401985673,1768438231873,-931.037,0.0001659,2]
[401985674,1768438237653,-275.52931783,0.0001659,2]
[401985675,1768438237664,-4096.7933772,0.0001659,2]
[401985676,1768438237679,-3887.67904856,0.0001659,2]
[401985677,1768438237689,-2238.94220266,0.0001659,2]
[401985678,1768438237700,-801.94162952,0.0001659,2]
[401985679,1768438238064,-665.95499999,0.0001659,2]
[401985809,1768438239654,-949.309992,0.0001659,2]
[401985813,1768438239665,-94185.45144845,0.0001659,2]
[401985837,1768438239865,-1059.80161734,0.0001659,2]
[401985844,1768438239920,-72262.39484264,0.0001659,2]
[401985846,1768438239931,-1517.46946338,0.0001659,2]
[401985851,1768438239973,-275608.31938191,0.0001659,2]
[401985853,1768438239983,-10855.94199981,0.00016689,2]
[401985855,1768438239993,-550.0,0.00016689,2]
[401985857,1768438240002,-79082.81422119,0.0001669,2]
[401985860,1768438240014,-2500.0,0.000167,2]
[401985862,1768438240024,-16435.29066168,0.000167,2]
[401985864,1768438240033,-1606.455,0.00016789,2]
[401985866,1768438240042,-170.04,0.00016789,2]
[401985868,1768438240051,-209.63270184,0.0001679,2]
[401985870,1768438240061,-200.0,0.0001679,2]
[401985872,1768438240070,-500.0,0.0001679,2]
[401985874,1768438240079,-500.0,0.0001679,2]
[401985875,1768438240090,-500.0,0.0001679,2]
[401985878,1768438240100,-500.0,0.0001679,2]
[401985880,1768438240110,-500.0,0.0001679,2]
[401985882,1768438240119,-500.0,0.0001679,2]
[401985884,1768438240129,-500.0,0.0001679,2]
[401985885,1768438240138,-500.0,0.0001679,2]
[401985888,1768438240147,-500.0,0.0001679,2]
[401985890,1768438240156,-500.0,0.0001679,2]
[401985892,1768438240165,-500.0,0.0001679,2]
[401985894,1768438240175,-500.0,0.0001679,2]
[401985896,1768438240184,-500.0,0.0001679,2]
[401985897,1768438240193,-500.0,0.0001679,2]
[401985900,1768438240202,-500.0,0.0001679,2]
[401985902,1768438240211,-500.0,0.0001679,2]
[401985904,1768438240221,-500.0,0.0001679,2]
[401985905,1768438240230,-500.0,0.0001679,2]
[401985907,1768438240239,-500.0,0.0001679,2]
[401985909,1768438240248,-500.0,0.0001679,2]
[401985912,1768438240258,-500.0,0.0001679,2]
[401985913,1768438240267,-500.0,0.0001679,2]
[401985917,1768438240276,-200.0,0.0001679,2]
[401985919,1768438240286,-500.0,0.0001679,2]
[401985923,1768438240295,-151.0,0.0001679,2]
[401985926,1768438240304,-151.0,0.0001679,2]
[401985929,1768438240313,-151.0,0.0001679,2]
[401985930,1768438240323,-151.0,0.0001679,2]
[401985933,1768438240332,-151.0,0.0001679,2]
[401985934,1768438240341,-151.0,0.0001679,2]
[401985936,1768438240350,-151.0,0.0001679,2]
[401985938,1768438240359,-151.0,0.0001679,2]
[401985940,1768438240368,-307.58700001,0.0001679,2]
[401985942,1768438240378,-151.0,0.0001679,2]
[401985944,1768438240387,-151.0,0.0001679,2]
[401985946,1768438240397,-151.0,0.0001679,2]
[401985948,1768438240406,-206.91,0.0001679,2]
[401985950,1768438240415,-500.0,0.00016799,2]
[401985952,1768438240424,-474.43522182,0.00016799,2]
[401985954,1768438240433,-500.0,0.00016799,2]
[401985956,1768438240442,-500.0,0.00016799,2]
[401985958,1768438240452,-500.0,0.00016799,2]
[401985960,1768438240461,-500.0,0.00016799,2]
[401985962,1768438240470,-577.6208976,0.00016799,2]
[401985964,1768438240479,-500.0,0.00016799,2]
[401985966,1768438240488,-1500.0,0.000168,6]
[401985968,1768438240498,-779.05108769,0.0001689,2]
[401985971,1768438240507,-3000.0,0.000169,6]
[401985973,1768438240517,-765.63,0.0001702,2]
[401985975,1768438240526,-206.91,0.00017064,2]
[401985977,1768438240535,-1000.0,0.0001712,2]
[401985979,1768438240544,-656.74150605,0.00017187,2]
[401985981,1768438240553,-986.801,0.0001719,2]
[401985983,1768438240562,-1000.0,0.0001719,2]
[401985984,1768438240572,-509.39,0.00017205,2]
[401985986,1768438240581,-500.0,0.00017289,2]
[401985988,1768438240590,-318.7628397,0.00017289,2]
[401985990,1768438240600,-500.0,0.00017289,2]
[401985992,1768438240609,-500.0,0.00017289,2]
[401985994,1768438240618,-500.0,0.00017289,2]
[401985996,1768438240627,-500.0,0.00017289,2]
[401985998,1768438240636,-500.0,0.00017338,2]
[401986001,1768438240647,-206.91,0.00017338,2]
[401986002,1768438240656,-500.0,0.00017478,2]
[401986005,1768438240665,-500.0,0.00017478,2]
[401986007,1768438240674,-500.0,0.00017478,2]
[401986009,1768438240683,-500.0,0.00017478,2]
[401986011,1768438240693,-500.0,0.00017478,2]
[401986013,1768438240703,-500.0,0.00017478,2]
[401986015,1768438240712,-13530.27649684,0.00017529,2]
[401986017,1768438240722,-206.91,0.00017612,2]
[401986019,1768438240733,-3240.0,0.00017689,2]
[401986021,1768438240741,-150.0,0.00017704,2]
[401986023,1768438240751,-150.0,0.00017704,2]
[401986025,1768438240759,-150.0,0.00017704,2]
[401986027,1768438240768,-500.0,0.00017704,2]
[401986029,1768438240777,-150.0,0.00017704,2]
[401986031,1768438240786,-500.0,0.00017704,2]
[401986033,1768438240795,-500.0,0.00017704,2]
[401986035,1768438240804,-150.99,0.00017728,2]
[401986037,1768438240813,-9999.99,0.00017728,2]
[401986039,1768438240822,-2612.41,0.00017728,2]
[401986041,1768438240831,-4517.32,0.00017728,2]
[401986042,1768438240840,-150.0,0.00017759,2]
[401986044,1768438240849,-150.0,0.00017759,2]
[401986047,1768438240858,-500.0,0.00017759,2]
[401986048,1768438240867,-150.0,0.00017759,2]
[401986050,1768438240876,-500.0,0.00017759,2]
[401986053,1768438240886,-500.0,0.00017759,2]
[401986054,1768438240895,-1816.2,0.0001777,2]
[401986056,1768438240904,-867.0,0.00017807,2]
[401986058,1768438240913,-150.0,0.00017814,2]
[401986060,1768438240923,-150.0,0.00017814,2]
[401986062,1768438240932,-174.78328857,0.00017814,2]
[401986064,1768438240941,-150.0,0.00017814,2]
[401986066,1768438240950,-500.0,0.00017814,2]
[401986068,1768438240959,-500.0,0.00017814,2]
[401986070,1768438240968,-500.0,0.00017819,4]
[401986072,1768438240977,-500.0,0.00017819,4]
[401986074,1768438240987,-500.0,0.00017819,4]
[401986076,1768438240996,-150.0,0.00017819,4]
[401986078,1768438241005,-500.0,0.00017819,4]
[401986080,1768438241015,-150.0,0.00017819,2]
[401986082,1768438241024,-500.0,0.00017819,4]
[401986084,1768438241034,-150.0,0.00017819,2]
[401986086,1768438241042,-150.0,0.00017868,2]
[401986088,1768438241052,-202.08698658,0.00017868,2]
[401986090,1768438241063,-150.0,0.00017868,2]
[401986092,1768438241072,-486.0,0.00017868,2]
[401986094,1768438241081,-500.0,0.00017868,2]
[401986096,1768438241092,-500.0,0.00017874,4]
[401986098,1768438241101,-500.0,0.00017874,4]
[401986100,1768438241110,-400.0,0.00017874,4]
[401986102,1768438241119,-200.0,0.00017874,4]
[401986104,1768438241128,-500.0,0.00017874,4]
[401986106,1768438241138,-500.0,0.00017874,4]
[401986108,1768438241147,-3361.74,0.00017876,2]
[401986110,1768438241156,-500.0,0.00017886,2]
[401986112,1768438241167,-206.95365911,0.00017886,2]
[401986114,1768438241178,-250.0,0.00017923,2]
[401986116,1768438241187,-150.0,0.00017923,2]
[401986118,1768438241197,-500.0,0.00017923,2]
[401986120,1768438241207,-500.0,0.00017929,4]
[401986122,1768438241216,-500.0,0.00017929,4]
[401986124,1768438241225,-500.0,0.00017929,4]
[401986126,1768438241237,-648.69425671,0.00017929,4]
[401986128,1768438241246,-151.76174465,0.00017978,2]
[401986130,1768438241256,-578.52589726,0.00017983,4]
[401986132,1768438241266,-516.31193931,0.00017983,4]
[401986134,1768438241275,-165.88924423,0.00017989,2]
[401986137,1768438241284,-500.0,0.00017999,2]
[401986139,1768438241293,-500.0,0.00017999,2]
[401986141,1768438241302,-500.0,0.00017999,2]
[401986143,1768438241312,-500.0,0.00017999,2]
[401986144,1768438241321,-503.28424805,0.00017999,2]
[401986146,1768438241331,-509.39,0.00018065,2]
[401986149,1768438241340,-174.30171844,0.00018093,2]